Cogmind - Beta 15 @@@ ROGUE MODE // 2025.07.04 @ 09:35:54 Player: beans Result: Destroyed by P-60 Hacker with Shock Rifle Performance ------------- Evolutions (3) 1500 Regions Visited (6) 1200 Robots Destroyed (74) 370 Value Destroyed (2122) 2122 Prototype IDs (24) 480 Alien Tech Used (0) 0 Bonus (381) 381 TOTAL SCORE: 6053 Bonus ------- Follower Combat Kills 81 Aligned with FarCom 300 Cogmind --------- Core Integrity 0/700 Matter 233/300 Energy 290/290 System Corruption 12% Temperature Cool (0) Movement Treading (250) Ox1 Location -7/Factory Parts ------- > --- POWER (1) -------- Reinforced Deuterium Engine > --- PROPULSION (3) --- Armored Treads > --- UTILITY (4) ------ Advanced Targeting Computer Advanced Targeting Computer Advanced Targeting Computer Launcher Guidance Computer > --- WEAPON (5) ------- Rocket Launcher Mace (fused) > --- INVENTORY (5) ---- High-capacity Matter Pod (200) Hardened Medium Armor Plating Insulated Plating Proton Bomb Trap Peak State ------------ > --- POWER ------------ Light Deuterium Engine > --- PROPULSION ------- VTOL Module > --- UTILITY ---------- Advanced Targeting Computer Advanced Targeting Computer Advanced Targeting Computer Matter Filter > --- WEAPON ----------- Gatling Laser Autogun Autogun Gauss Rifle Remote Datajack > --- INVENTORY -------- High-capacity Matter Pod Hardened Medium Armor Plating Insulated Plating Rocket Launcher Proton Bomb Trap [Rating: 35] Favorites ----------- Power Ion Engine Engine Ion Engine Propulsion Aluminum Leg Treads Light Treads Leg Aluminum Leg Flight Unit VTOL Module Utility Advanced Targeting Computer Device Seismic Detector Storage High-capacity Storage Unit Processor Advanced Targeting Computer Hackware Hacking Suite Protection Hardened Medium Armor Plating Weapon Light Assault Rifle Energy Gun Gatling Laser Energy Cannon Firepult Ballistic Gun Light Assault Rifle Launcher Rocket Launcher Special Weapon Remote Datajack Impact Weapon Mace Build | -11 -10 -10 -10 -9 -8 -7 ------- Run | Yrd Mat Min Exi Min Mat Fac Slots Evolved 6 | . . . . . 4 2 Power . | . . . . . . . Propulsion 1 | . . . . . 1 . Utility 2 | . . . . . 2 . Weapon 3 | . . . . . 1 2 Parts Attached 54 | 4 3 4 3 2 15 23 Power 6 | . 1 . . 1 2 2 Engine 6 | . 1 . . 1 2 2 Core . | . . . . . . . Reactor . | . . . . . . . Propulsion 11 | 2 . 2 . . 4 3 Treads 3 | 2 . . . . . 1 Leg 3 | . . 2 . . 1 . Wheel . | . . . . . . . Hover . | . . . . . . . Flight 5 | . . . . . 3 2 Utility 16 | . 2 . 2 . 5 7 Device 5 | . . . 1 . 2 2 Storage 1 | . 1 . . . . . Processor 8 | . 1 . 1 . 2 4 Hackware 1 | . . . . . 1 . Protection 1 | . . . . . . 1 Artifact . | . . . . . . . Weapon 21 | 2 . 2 1 1 4 11 Energy Gun 4 | . . . . . 1 3 Energy Cannon 1 | . . . 1 . . . Ballistic Gun 11 | 2 . 2 . . 2 5 Ballistic Cannon . | . . . . . . . Launcher 3 | . . . . 1 1 1 Special Weapon 1 | . . . . . . 1 Impact Weapon 1 | . . . . . . 1 Slashing Weapon . | . . . . . . . Piercing Weapon . | . . . . . . . Special Melee Weapon . | . . . . . . . Unidentified Prototypes 1 | . . . . . . 1 Parts Lost 30 | . . 4 . . 10 16 Power 3 | . . . . . 2 1 Propulsion 8 | . . 2 . . 4 2 Utility 4 | . . . . . . 4 Weapon 15 | . . 2 . . 4 9 Highest Loss Streak 8 | . . 2 . . 8 7 To Critical Strikes . | . . . . . . . Average Backups 3 | . . 3 3 3 3 3 Power . | . . . . . . . Propulsion . | . . . . . . . Utility 2 | . . 2 1 1 1 2 Weapon . | . . . 1 1 1 . Tool/Special . | . . . . . . . Unused Backups 6 | . . . 2 . 2 2 Power . | . . . . . . . Propulsion . | . . . . . . . Utility 4 | . . . 1 . 1 2 Weapon 1 | . . . 1 . . . Tool/Special 1 | . . . . . 1 . Average Slot Usage (%) 74 | . 87 86 95 85 75 58 Engine 8 | . 8 14 14 14 8 2 Treads 4 | . 28 11 . . . . Leg 7 | . . 4 28 28 4 . Flight 3 | . . . . . 18 4 Device 4 | . . . 8 14 9 3 Storage 7 | . 10 14 14 14 5 . Processor 12 | . 10 14 5 . 6 17 Hackware 2 | . . . . . 7 4 Energy Gun 3 | . . . . . . 8 Ballistic Gun 14 | . 28 26 19 . 9 10 Launcher 2 | . . . . 13 5 . Special Weapon 1 | . . . . . . 2 Peak Build Rating 35 | 4 7 8 26 26 34 35 Average Rating 16 | 2 6 6 13 10 23 24 On Entrance 9 | . 4 7 8 26 10 11 Naked Turns . | . . . . . . . Heaviest Build 68 | 4 49 49 68 68 53 25 Greatest Support 40 | 40 40 40 20 20 20 20 Greatest Overweight (x) 15 | 1 1 15 3 3 8 7 Average Overweight (x) 2 | . . 3 2 2 1 2 Largest Inventory Capacity 20 | 5 20 20 20 20 20 5 Average Capacity 12 | 5 17 20 20 20 13 5 Most Carried 11 | 2 1 8 10 9 11 5 Average Carried 4 | . . 4 4 5 6 4 Final Capacity 20 | 5 20 20 20 20 5 5 Final Carried 9 | . 1 6 4 9 2 4 Class Distribution -------------------- 55% | Mutant 21% | Scavenger-Gunner 11% | Scavenger-Mutant 11% | Skirmisher Dominant Class ---------------- Mutant | -10/Materials Mutant | -10/Mines Scavenger-Mutant | -10/Exiles Mutant | -9/Mines Mutant | -8/Materials Scavenger-Gunner | -7/Factory Resources | -11 -10 -10 -10 -9 -8 -7 ----------- Run | Yrd Mat Min Exi Min Mat Fac Matter Collected 1767 | 195 243 54 . 108 443 724 Remotely . | . . . . . . . Salvage Created 2526 | . 344 . . 170 835 1177 Parts 145 | . 25 . . 16 45 59 Haulers Intercepted 1 | . . . . . . 1 Recyclers Shooed 1 | . . . . . 1 . Parts Field Recycled . | . . . . . . . Retrieved Matter . | . . . . . . . Parts Self-Destructed . | . . . . . . . Prevented . | . . . . . . . Kills | -11 -10 -10 -10 -9 -8 -7 ------- Run | Yrd Mat Min Exi Min Mat Fac Combat Hostiles Destroyed 49 | . 10 . . 8 13 18 Guns 34 | . 10 . . . 8 16 Cannons 1 | . . . . 1 . . AOE 12 | . . . . 7 5 . Classes Destroyed 11 | . 4 . . . 5 2 Worker 6 | . . . . . 1 5 Builder 5 | . 1 . . . 1 3 Hauler 1 | . . . . . . 1 Recycler 4 | . . . . . 2 2 Watcher 8 | . 3 . . . 1 4 Swarmer 16 | . 6 . . 6 . 4 Grunt 18 | . 4 . . 3 7 4 Brawler 2 | . . . . . 1 1 Sentry 6 | . . . . . 4 2 Hunter 1 | . . . . . 1 . Programmer 7 | . . . . . . 7 Best Kill Streak 9 | . 9 . . 3 6 5 Combat Bots Only 5 | . 5 . . 3 5 3 Max Kills in Single Turn 3 | . 2 . . 3 3 2 Gunslinging 1 | . 1 . . . . . Exploded 2 | . . . . 2 1 . Melee . | . . . . . . . Uniques/NPCs Destroyed . | . . . . . . . Combat | -11 -10 -10 -10 -9 -8 -7 -------- Run | Yrd Mat Min Exi Min Mat Fac Hostile Shots Fired 447 | . 55 24 . 17 126 225 Missed 134 | . 19 5 . 6 39 65 Hits 313 | . 36 19 . 11 87 160 Melee 3 | . . . . . . 3 Projectile 310 | . 36 19 . 11 87 157 Critical Strikes 6 | . . . . 1 3 2 Damage Taken 4098 | . 347 254 . 163 1317 2017 Core 1144 | . 54 10 . 33 341 706 Absorbed by Shields . | . . . . . . . Core Remaining (%) 66 | 100 . . . 61 38 . Volleys Fired 181 | . 28 9 . 7 64 73 Largest 3 | . 2 2 . 1 2 3 Hottest 250 | . 40 40 . 250 250 183 Shots Fired 325 | . 56 13 . 7 99 150 Gun 297 | . 56 13 . . 89 139 Cannon 6 | . . . . 3 3 . Launcher 12 | . . . . 4 7 1 Special 10 | . . . . . . 10 Kinetic 239 | . 56 13 . . 89 81 Thermal 64 | . . . . 3 3 58 Explosive 12 | . . . . 4 7 1 Electromagnetic . | . . . . . . . Robot Hit Streak 16 | . 6 5 . 3 8 16 Robot Miss Streak 6 | . 6 1 . 6 3 3 Penetration Max 1 | . . . . . . 1 Secondary Targets 5 | . 3 . . . 1 1 Max Gunslinging Chain 1 | . 1 . . . 1 1 Shots Hit Robots 219 | . 34 11 . 3 56 115 Core Hits 140 | . 18 2 . 17 36 67 Critical Kills . | . . . . . . . Critical Parts Destroyed 6 | . . . . . 3 3 Critical Strikes 7 | . . . . . 4 3 Destroy 5 | . . . . . 4 1 Smash 2 | . . . . . . 2 Melee Attacks 7 | . . . . . . 7 Impact 7 | . . . . . . 7 Slashing . | . . . . . . . Piercing . | . . . . . . . Sneak Attacks 1 | . . . . . . 1 Combat Hostiles . | . . . . . . . Follow-up Attacks . | . . . . . . . Damage Inflicted 5344 | . 461 118 . 425 1678 2662 Guns 3944 | . 461 116 . . 899 2468 Cannons 36 | . . . . 11 25 . Explosions 1198 | . . . . 414 754 30 Melee 164 | . . . . . . 164 Ramming 2 | . . 2 . . . . Kinetic 2591 | . 461 116 . . 899 1115 Thermal 1710 | . . . . 201 156 1353 Explosive 877 | . . . . 224 623 30 Electromagnetic . | . . . . . . . Impact 164 | . . . . . . 164 Slashing . | . . . . . . . Piercing . | . . . . . . . Highest Corruption 11 | . . . . . . 11 Average Corruption 4 | . . . . . . 4 Corruption Purged . | . . . . . . . Corruption Blocked . | . . . . . . . Effects 79 | . . . . . . 79 Message Errors 16 | . . . . . . 16 Matter Fused 19 | . . . . . . 19 Heat Flow Errors 8 | . . . . . . 8 Energy Discharges 15 | . . . . . . 15 Parts Rejected 1 | . . . . . . 1 Parts Fused 1 | . . . . . . 1 Data Loss (minor) 11 | . . . . . . 11 Data Loss (major) 4 | . . . . . . 4 Misfires 2 | . . . . . . 2 Alerts 1 | . . . . . . 1 Weapon Failures 1 | . . . . . . 1 Overload Shots . | . . . . . . . Overflow Damage 112 | . . . . 20 . 92 Projectiles . | . . . . . . . Explosions 20 | . . . . 20 . . Melee 92 | . . . . . . 92 Knockbacks 1 | . . . . . . 1 Impact 1 | . . . . . . 1 Kinetic . | . . . . . . . Secondary . | . . . . . . . Self-Inflicted Damage 83 | . . . . 70 13 . Shots 7 | . . . . 6 1 . Rammed 1 | . . 1 . . . . Targets Rammed 1 | . . 1 . . . . Kicked . | . . . . . . . Crushed . | . . . . . . . Highest Temperature 684 | . . 9 . 420 684 292 Average Temperature 103 | . . 6 . 181 321 65 Received Heat Transfer 1458 | . 108 105 . 27 693 525 Effects 19 | . . . . 1 17 1 Shutdowns 1 | . . . . 1 . . Energy Bleed 1 | . . . . . . 1 Matter Decay 1 | . . . . . 1 . Short Circuit 3 | . . . . . 3 . Damage (major) 13 | . . . . . 13 . Siege Activations . | . . . . . . . Martial Activations . | . . . . . . . Shielding Activations . | . . . . . . . Robots Disrupted . | . . . . . . . Combat Hostiles . | . . . . . . . Robots Corrupted 3 | . . . . . . 3 Combat Hostiles 2 | . . . . . . 2 Parts Fried 1 | . . . . . . 1 Impact Corruptions 4 | . . . . . . 4 Robots Melted 1 | . . . . 1 . . Combat Hostiles . | . . . . . . . Parts Melted 14 | . . . . 4 1 9 Heat Transferred 5330 | . . . . 1680 800 2850 Parts Sabotaged . | . . . . . . . Parts Stolen . | . . . . . . . Parts Stripped . | . . . . . . . Power Chain Reactions . | . . . . . . . Alert | -11 -10 -10 -10 -9 -8 -7 ------- Run | Yrd Mat Min Exi Min Mat Fac Maximum Alert Level 1 | . . . . . . 1 Low Security (%) 89 | 100 100 100 . 100 100 78 Level 1 10 | . . . . . . 21 Level 2 . | . . . . . . . Level 3 . | . . . . . . . Level 4 . | . . . . . . . Level 5 . | . . . . . . . High Security . | . . . . . . . Max Security . | . . . . . . . Peak Influence 254 | . 190 82 . 172 179 254 Initial 69 | . . 9 . . . 69 Average 61 | . 73 7 . 50 39 92 Influence Increases 1912 | . 271 154 . 277 486 724 Destroy 0b10 Robot/C 1080 | . 200 100 . 160 260 360 Destroy 0b10 Robot/NC 120 | . 20 . . . 25 75 Destroy Leader 278 | . 36 20 . 30 82 110 Allied During Kill 42 | . . 19 . 23 . . Trap Triggered on 0b10 10 | . . . . . 10 . Disable Machine 120 | . . 15 . 15 15 75 Destroy Structure 157 | . . . . 49 64 44 Lose Combat Pursuer 105 | . 15 . . . 30 60 Influence Decreases 1680 | . 246 179 . 277 333 645 Entered New Map 100 | . . 16 . . . 84 Time Decay 1315 | . 246 123 . 277 228 441 Lost Part 260 | . . 40 . . 100 120 Lost Ally 5 | . . . . . 5 . Squads Dispatched 16 | . 2 . . . 3 11 Investigation 3 | . 1 . . . . 2 Extermination 8 | . . . . . . 8 Reinforcement 4 | . 1 . . . 2 1 Assault . | . . . . . . . Garrison 1 | . . . . . 1 . Intercept . | . . . . . . . Searches Triggered . | . . . . . . . Construction Impeded 1 | . . . . . 1 . Haulers Reinforced . | . . . . . . . Active Scanning Responses . | . . . . . . . Cargo Convoy Interrupts . | . . . . . . . Stealth | -11 -10 -10 -10 -9 -8 -7 --------- Run | Yrd Mat Min Exi Min Mat Fac Distress Signals 5 | . 1 . . . 2 2 Communications Jammed . | . . . . . . . Distress Signals . | . . . . . . . Times Spotted 80 | . 18 5 . 4 23 30 Peak Tracking Total 8 | . 5 3 . 3 8 3 Tactical Retreats 6 | . 1 . . . 2 3 Traps | -11 -10 -10 -10 -9 -8 -7 ------- Run | Yrd Mat Min Exi Min Mat Fac Traps Triggered 4 | . 1 . . . . 3 Indirectly . | . . . . . . . Trap Hack Attempts . | . . . . . . . Triggered . | . . . . . . . Disarmed . | . . . . . . . Reprogrammed . | . . . . . . . Reused 1 | . . . . . 1 . Traps Extracted . | . . . . . . . Installed 2 | . . . . . 2 . Triggered 1 | . . . . . 1 . Most Traps Carried 3 | . . . . 3 3 1 Machines | -11 -10 -10 -10 -9 -8 -7 ---------- Run | Yrd Mat Min Exi Min Mat Fac Machines Disabled 8 | . . 1 . 1 1 5 Max in Single Turn 4 | . . 1 . 1 1 4 Machines Repaired . | . . . . . . . Machines Dismantled . | . . . . . . . Machines Sabotaged . | . . . . . . . Overloaded Fab Kills . | . . . . . . . Hacking | -11 -10 -10 -10 -9 -8 -7 --------- Run | Yrd Mat Min Exi Min Mat Fac Machines Accessed 2 | . . . 2 . . . Terminals . | . . . . . . . Fabricators . | . . . . . . . Repair Stations . | . . . . . . . Recycling Units . | . . . . . . . Scanalyzers . | . . . . . . . Garrison Access . | . . . . . . . Total Hacks 24 | . . . 24 . . . Successful 24 | . . . 24 . . . Failed . | . . . . . . . Catastrophic . | . . . . . . . Database Lockouts . | . . . . . . . Manual 2 | . . . 2 . . . Terminals . | . . . . . . . Fabricators . | . . . . . . . Repair Stations . | . . . . . . . Recycling Units . | . . . . . . . Scanalyzers . | . . . . . . . Garrison Access . | . . . . . . . Terminal Hacks 24 | . . . 24 . . . Record 23 | . . . 23 . . . Proto ID Catalog 1 | . . . 1 . . . Fabricator Hacks . | . . . . . . . Repair Station Hacks . | . . . . . . . Recycling Unit Hacks . | . . . . . . . Scanalyzer . | . . . . . . . Garrison Access Hacks . | . . . . . . . Unauthorized Hacks . | . . . . . . . Terminals . | . . . . . . . Fabricators . | . . . . . . . Repair Stations . | . . . . . . . Recycling Units . | . . . . . . . Scanalyzers . | . . . . . . . Garrison Access . | . . . . . . . Data Cores Recovered . | . . . . . . . Used . | . . . . . . . Hacking Detections . | . . . . . . . Full Trace Events . | . . . . . . . Feedback Events . | . . . . . . . Feedback Blocked . | . . . . . . . Robot Schematics Acquired . | . . . . . . . Robots Built . | . . . . . . . Authchips . | . . . . . . . Time . | . . . . . . . Total Robot Build Rating . | . . . . . . . Part Schematics Acquired . | . . . . . . . Parts Built . | . . . . . . . Authchips . | . . . . . . . Time . | . . . . . . . Total Part Build Rating . | . . . . . . . Parts Repaired . | . . . . . . . Time . | . . . . . . . Parts Recycled . | . . . . . . . Recycled Matter . | . . . . . . . Retrieved Matter . | . . . . . . . Retrieved Components . | . . . . . . . Parts Scanalyzed . | . . . . . . . Part Schematics Acquired . | . . . . . . . Parts Damaged . | . . . . . . . Bothacking | -11 -10 -10 -10 -9 -8 -7 ------------ Run | Yrd Mat Min Exi Min Mat Fac Used RIF Installer . | . . . . . . . Robots Hacked 5 | . . . . . . 5 Non-combat 5 | . . . . . . 5 Combat . | . . . . . . . Robot Hacks Applied 7 | . . . . . . 7 parse_system 1 | . . . . . . 1 no_distress 3 | . . . . . . 3 find_chute 1 | . . . . . . 1 find_recycling 2 | . . . . . . 2 Relay Couplers Released . | . . . . . . . Fabnet Peak Effective % . | . . . . . . . Robots Rewired . | . . . . . . . Allies Hacked . | . . . . . . . Hacks Repelled . | . . . . . . . Allies | -11 -10 -10 -10 -9 -8 -7 -------- Run | Yrd Mat Min Exi Min Mat Fac Total Allies 3 | . . 3 . . . . Largest Group 3 | . . 3 3 2 2 . Highest-Rated Group 40 | . . 40 40 24 24 . Highest-Rated Ally 16 | . . 16 16 16 16 . Total Orders 3 | . . . . . 3 . STAY 1 | . . . . . 1 . ROAM 1 | . . . . . 1 . FOLLOW 1 | . . . . . 1 . Ally Attacks 28 | . . 18 . 1 9 . Total Damage 271 | . . 198 . . 73 . Kills 5 | . . 5 . . . . Allies Corrupted . | . . . . . . . Allies Melted 1 | . . . . 1 . . Intel | -11 -10 -10 -10 -9 -8 -7 ------- Run | Yrd Mat Min Exi Min Mat Fac Active Infowar (turns) 2256 | . . . 648 1113 495 . Terrain 2 | . . . . . 2 . Seismic 2254 | . . . 648 1113 493 . Robot Analysis Total . | . . . . . . . Derelict Logs Recovered 4 | . . 2 . 2 . . Drone Launches . | . . . . . . . Drone Recoveries . | . . . . . . . Exploration | -11 -10 -10 -10 -9 -8 -7 ------------- Run | Yrd Mat Min Exi Min Mat Fac Turns Passed 9728 | 45 638 1885 1090 1113 885 4072 Spaces Moved 3384 | 37 244 531 358 370 466 1378 Core 704 | 22 . 96 . . 8 578 Treads 762 | 15 244 307 . . . 196 Legs 924 | . . 128 358 370 68 . Wheels . | . . . . . . . Hover . | . . . . . . . Flight 994 | . . . . . 390 604 Fastest Speed 29 | 50 160 240 260 260 29 50 Average Speed 243 | 104 218 347 279 262 115 240 Slowest Speed 800 | 160 240 800 330 330 470 515 Overloaded Moves . | . . . . . . . Propulsion Burnouts . | . . . . . . . Robots Hopped . | . . . . . . . Potential Cave-ins . | . . . . . . . Cave-ins Triggered . | . . . . . . . Exploration Rate (%) 50 | 3 46 97 65 77 32 33 Regions Visited 6 Branch Regions 3 Pre-discovered Areas 5 | . . 3 1 1 . . Known Exits Taken 1 | . . . . . 1 . Unknown Exits Taken 5 | 1 1 1 1 1 . . Scrap Searched 2 | . . 1 . 1 . . Spaces Dug 5 | . . . . . 5 . Terrain Destroyed 204 | . . . . 66 96 42 Melee . | . . . . . . . Projectile 5 | . . . . 2 3 . AOE 199 | . . . . 64 93 42 Terrain Rammed . | . . . . . . . Walls Destroyed . | . . . . . . . Machines Disabled . | . . . . . . . Actions | -11 -10 -10 -10 -9 -8 -7 --------- Run | Yrd Mat Min Exi Min Mat Fac Total 4582 | 44 293 555 452 506 737 1995 Wait 867 | . 15 3 81 121 153 494 Move 3378 | 36 243 530 357 369 465 1378 Hop . | . . . . . . . Pick Up 55 | 4 4 8 4 5 15 15 Fast Attach 18 | . . . . . 7 11 Attach 36 | 4 3 4 3 1 8 13 Detach 4 | . . . 1 1 1 1 Swap 4 | . . . . 1 3 . Drop 29 | . . . 6 1 19 3 Fire 181 | . 28 9 . 7 64 73 Melee 7 | . . . . . . 7 Ram . | . . . . . . . Kick . | . . . . . . . Crush 1 | . . 1 . . . . Escape Stasis . | . . . . . . . Rewire . | . . . . . . . Trap 2 | . . . . . 2 . Miscellaneous . | . . . . . . . Route ------- -11/Scrapyard -10/Materials -10/Mines (discovered 4 exits: [*Mat x2] / *Exi / [*Sub]) -10/Exiles -9/Mines -8/Materials (discovered 2 exits: *Fac x2) -7/Factory History --------- Turn | Location | Event 4 | -11/Scrapyard | Discovered new exit (range 15) 46 | -11/Scrapyard | Entered Materials 146 | -10/Materials | Discovered new exit (range 12) 304 | -10/Materials | Build established: Mutant 684 | -10/Materials | Entered Mines 705 | -10/Mines | Learned location of Storage (-9) 787 | -10/Mines | Assembled infested the area 805 | -10/Mines | Discovered new exit (range 15) 935 | -10/Mines | Received a Rocket Launcher from a helpful Derelict 1063 | -10/Mines | Found a Scrap Suit stashed away for nefarious purposes 1077 | -10/Mines | Found Scrap Suit 1290 | -10/Mines | Assisted by bots powering up and referring to "LRC-V3" 1295 | -10/Mines | Learned location of Zion (-7) 1453 | -10/Mines | Discovered new exit (range 5) 1637 | -10/Mines | Discovered new exit (range 13) 2538 | -10/Mines | Build established: Scavenger-Mutant 2553 | -10/Mines | Discovered new exit (range 5) 2569 | -10/Mines | Entered Exiles 2569 | -10/Exiles | Accompanied by 3 allies 2632 | -10/Exiles | Met 8R-AWN 2673 | -10/Exiles | Met EX-HEX 2772 | -10/Exiles | Met EX-BIN 2855 | -10/Exiles | Aligned with FarCom system 2858 | -10/Exiles | Given EX-Vault access code 2964 | -10/Exiles | Opened EX-Vault 2983 | -10/Exiles | Found XL Autogun Array 2997 | -10/Exiles | Found Firepult 3094 | -10/Exiles | Warned to stay clear of 0b10 Research branches 3280 | -10/Exiles | Found Army-in-a-Box 3438 | -10/Exiles | Met EX-DEC 3629 | -10/Exiles | Discovered new exit (range 11) 3634 | -10/Exiles | Build established: Mutant 3659 | -10/Exiles | Left Exiles lab with Firepult 3659 | -10/Exiles | Entered Mines 3659 | -9/Mines | Accompanied by 3 allies 3934 | -9/Mines | Learned location of 1 exit from Materials 4683 | -9/Mines | Found a hidden stash of uninstalled traps 4759 | -9/Mines | Discovered new exit (range 5) 4772 | -9/Mines | Entered Materials 4772 | -8/Materials | Accompanied by 2 allies 4772 | -8/Materials | Evolved 4 slots: Propulsion x1, Utility x2, Weapon x1 4773 | -8/Materials | Identified exit to Factory 5580 | -8/Materials | Discovered exit to Factory (range 15) 5581 | -8/Materials | Garrison activated, responded to threat 5643 | -8/Materials | Core integrity fell below 50% 5657 | -8/Materials | Entered Factory 5657 | -7/Factory | Evolved 2 slots: Weapon x2 5684 | -7/Factory | Lost 8 parts (1p3n4w) 6076 | -7/Factory | Build established: Skirmisher 6874 | -7/Factory | Lost 3 parts (1u2w) 6969 | -7/Factory | Core integrity fell below 50% 7326 | -7/Factory | Build established: Scavenger-Gunner 9107 | -7/Factory | System corruption reached 10% 9121 | -7/Factory | Core integrity fell below 20% 9150 | -7/Factory | Lost 7 parts (1p1n1u4w) 9408 | -7/Factory | Build established: Mutant 9729 | -7/Factory | Destroyed by P-60 Hacker with Shock Rifle Last Messages --------------- System corrupted: Matter fused (-7). System corrupted: Energy discharge (-110). Acquired Launcher Guidance Computer. System corrupted: Matter fused (-8). System corrupted: Matter fused (-6). PJTO>FSP,O&PUJ,EAWA3OILCFBLVR ALERT: Potential suspicious activity detected, Programmers report to Factory Zone 1R. K-01 Serf cleans the Pressure Siphon. K-01 Serf cleans the DSF Access. K-01 Serf cleans the Pressure Siphon. K-01 Serf cleans the DSF Access. System corrupted: Matter fused (-8). K-01 Serf cleans the DSF Access. K-01 Serf cleans the Pressure Siphon. Map ----- +----------------------------------------------------+ | ????????????????????????????????????# | | ????????????????????????????????????# " | | ????????????????????????????????????# | | ????????????????????????????????????# ##### | | ??????????????????????? ???????????# #???## | | ?????????????????????? ############# ##???? | | ??????????????????????? #??? | | ??????????????????????? #?#! | | ???????????????????????? */ #?# | | ?????????????????????????""" */ #?# " | | ?????????????????????????""" #?# " | | ?????????????????????# ??""" #?# " | | ?????????????????????# """ #?# " | | ?????????????????????# #?# ? | | ?????????????????????# """ """ #?# ?? | | ?????????????????????? """ """ ##########?# ??? | | ?????????????????????? """ """ ###????????#???? | | ??????????????????????# """ """ ""#????????????? | | ??????????????????????# k ""#????????????? | | ??????????????????????# """ """ ""#????????????? | | ??????????????????????# """ """ T#???#######??? | | ??????????????????????# """ """ ""#???# #??? | | ??????????????????????# """ """ ""#???# #??? | | ??????????????????????# u ""#???# #??? | | ??????????????????????# ] ##???# #??? | | ???????????????# = ! # @ #???# #??? | | ???????????????# + p #???# #??? | | ?????????????????? "" # #### T# ###### #??? | | ??????????????????????# ???#### # #??? | | ??????????????????????#???????# # ###+ | | ??????????????????????????????# """""" # | | ??????????????????????????????# """""" / | | ??????????????????????????????# """""" # | | ??????????????????????????????# """""" # """ """ | | ??????????????????????????????# ?? # """ """ | | ??????????????????????????????# ?????# """ """ | | ??????????????????????????????##????????# | | ????????????????????????????????????????# """ | | ????????????????????????????????????????# """ | | ????????????????????????????????????????# """ | | ???????????????????????????############## | | ???????????????????????????# # [ | | ???????????????????????????# # | | ???????????????????????????# # | | ???????????????????????????# # | | ???????????????????????????# """ """ # | | ???????????????????????????# """ """ + | | ???????????????????????????# """ """ # | | ???????????????????????????# + | | ???????????????????????????# """ """ ### #### | +----------------------------------------------------+ Best States ------------- Heat Dissipation 34 Energy Generation 16 Energy Capacity 290 Matter Stores 300 Matter Capacity 300 Sight Range 16 Terrain Scan Density 10 Base Temperature (-) 100 Armor Coverage 225 Melee Speed Boost 20 Evasion (%) 64 Targeting Accuracy 24 Launcher Accuracy 20 Target Analysis 5 Recoil Reduction 2 Matter Filtering 30 Offensive Hacking 10 Item Schematics ----------------- None Robot Schematics ------------------ None Fabricated ------------ Nothing Repaired ---------- Nothing Alien Tech Used ----------------- None Achievements -------------- None Challenges ------------ None Game ------ Seed DeuteriumCouplerRigger Manual? 0 Play Time 00:48:57 Cumulative 36.9 hours Start 2025.07.04 @ 08:20:16 End 2025.07.04 @ 09:35:54 Sessions 1 Manual Loads 0 Difficulty Rogue Special Mode None Game No. 174 Rogue 174 Adventurer 0 Explorer 0 Win Type - Total 0 Types 0/0/0/0/0/0/0/0/0/0 Lore% 22 Gallery% 23 Achievement% 19 Wizard Run 0 Options --------- Layout 2 ASCII 0 Keyboard 0 Movement Mouse Keybinds 0 Fullscreen 1 Font 24/Smallcaps Map View 50x44 Zoom Use 0% Tactical HUD 0 Map Filters NONE Filters NONE Steam 1 RUN: e4c7abc1-19b5-4b0a-8e55-5ca1b5f6f355